fUST/lending_fUST_20241028
["ID","MTS","AMOUNT","RATE_DAILY","PERIOD"]
[340911905,1730070645231,-250.0,0.0002748,17]
[340911906,1730070645241,-2454.636602,0.00027497,3]
[340911907,1730070645251,-150.112233,0.000275,9]
[340911908,1730070645261,-195.304289,0.00027558,7]
[340911909,1730070645272,-195.304289,0.00027558,7]
[340911910,1730070645281,-642.007,0.0002756,2]
[340911911,1730070645291,-150.0,0.0002756,2]
[340911912,1730070645301,-3359.83182244,0.00027568,2]
[340911913,1730070645312,-3853.679,0.00027585,2]
[340911914,1730070645322,-150.112233,0.000276,7]
[340911915,1730070645332,-150.112233,0.000276,10]
[340911916,1730070645342,-160.712919,0.00027641,2]
[340911917,1730070645352,-195.304289,0.00027661,7]
[340911918,1730070645362,-195.304289,0.00027661,7]
[340911919,1730070645372,-151.0,0.00027661,7]
[340911920,1730070645383,-160.0,0.0002767,10]
[340911921,1730070645392,-1008.87,0.00027671,30]
[340911922,1730070645403,-500.0,0.00027671,30]
[340911923,1730070645413,-1147.03,0.00027671,30]
[340911924,1730070645424,-500.0,0.00027671,30]
[340911925,1730070645435,-500.0,0.00027671,30]
[340911926,1730070645445,-647.6287485,0.00027671,30]
[340911927,1730070645456,-500.0,0.00027671,30]
[340911928,1730070645467,-500.0,0.00027671,30]
[340911929,1730070645479,-500.0,0.00027671,30]
[340911930,1730070645489,-809.27,0.00027671,30]
[340911931,1730070645499,-545.13,0.00027671,30]
[340911932,1730070645509,-195.304289,0.00027671,7]
[340911933,1730070645521,-195.304289,0.00027671,7]
[340911934,1730070645531,-195.304289,0.00027671,7]
[340911935,1730070645543,-195.304285,0.00027671,7]
[340911936,1730070645553,-450.68596909,0.00027671,30]
[340911937,1730070645563,-500.0,0.00027671,14]
[340911938,1730070645574,-500.0,0.00027671,30]
[340911939,1730070645585,-158.733515,0.00027671,7]
[340911940,1730070645597,-500.0,0.00027671,30]
[340911941,1730070645607,-500.0,0.00027671,30]
[340911942,1730070645619,-500.0,0.00027671,30]
[340911943,1730070645631,-500.0,0.00027671,30]
[340911944,1730070645642,-500.0,0.00027671,30]
[340911945,1730070645654,-554.91817893,0.00027671,30]
[340911946,1730070645664,-758.29,0.00027671,30]
[340911947,1730070645675,-538.99,0.00027671,30]
[340911948,1730070645686,-651.03,0.00027671,30]
[340911949,1730070645695,-500.0,0.00027671,20]
[340911950,1730070645707,-707.57,0.00027671,30]
[340911951,1730070645718,-1259.93,0.00027671,30]
[340911952,1730070645730,-943.23,0.00027671,30]
[340911953,1730070645741,-1578.31,0.00027671,30]
[340911954,1730070645752,-500.0,0.00027671,30]
[340911955,1730070645763,-500.0,0.00027671,30]
[340911956,1730070645774,-523.18,0.00027671,30]
[340911957,1730070645784,-1372.42,0.00027671,30]
[340911958,1730070645794,-597.25,0.00027671,30]
[340911959,1730070645805,-200.0,0.00027671,7]
[340911960,1730070645814,-500.0,0.00027671,30]
[340911961,1730070645824,-677.24,0.00027671,30]
[340911962,1730070645834,-564.13,0.00027671,30]
[340911963,1730070645845,-500.0,0.00027671,30]
[340911964,1730070645856,-151.0,0.00027671,7]
[340911965,1730070645866,-151.0,0.00027671,7]
[340911966,1730070645877,-151.0,0.00027671,7]
[340911967,1730070645887,-788.22,0.00027671,30]
[340911968,1730070645898,-151.0,0.00027671,7]
[340911969,1730070645908,-151.0,0.00027671,7]
[340911970,1730070645919,-500.0,0.00027671,30]
[340911971,1730070645929,-662.42,0.00027671,30]
[340911972,1730070645941,-820.06,0.00027671,30]
[340911973,1730070645951,-500.0,0.00027671,30]
[340911974,1730070645960,-754.69,0.00027671,30]
[340911975,1730070645971,-500.0,0.00027671,30]
[340911976,1730070645984,-500.0,0.00027671,30]
[340911977,1730070645994,-500.0,0.00027671,30]
[340911978,1730070646004,-525.06,0.00027671,30]
[340911979,1730070646014,-500.0,0.00027671,30]
[340911980,1730070646024,-500.0,0.00027671,30]
[340911981,1730070646033,-500.0,0.00027671,30]
[340911982,1730070646043,-569.37,0.00027671,30]
[340911983,1730070646052,-801.34,0.00027671,30]
[340911984,1730070646062,-500.0,0.00027671,30]
[340911985,1730070646072,-500.0,0.00027671,30]
[340911986,1730070646083,-618.07,0.00027671,30]
[340911987,1730070646092,-500.0,0.00027671,30]
[340911988,1730070646102,-500.0,0.00027671,30]
[340911989,1730070646111,-500.0,0.00027671,30]
[340911990,1730070646121,-500.0,0.00027671,30]
[340911991,1730070646131,-500.0,0.00027671,30]
[340911992,1730070646140,-1009.85,0.00027671,30]
[340911993,1730070646150,-500.0,0.00027671,30]
[340911994,1730070646159,-500.0,0.00027671,30]
[340911995,1730070646169,-500.0,0.00027671,30]
[340911996,1730070646178,-580.75,0.00027671,30]
[340911997,1730070646188,-500.0,0.00027671,30]
[340911998,1730070646197,-500.0,0.00027671,30]
[340911999,1730070646207,-521.86,0.00027671,30]
[340912001,1730070646216,-518.24,0.00027671,30]
[340912003,1730070646227,-500.0,0.00027671,30]
[340912004,1730070646237,-911.08,0.00027671,7]
[340912006,1730070646247,-500.0,0.00027671,30]
[340912007,1730070646257,-500.0,0.00027671,30]
[340912008,1730070646267,-549.3,0.00027671,30]
[340912009,1730070646276,-584.17,0.00027671,30]
[340912010,1730070646286,-567.29,0.00027671,30]
[340912011,1730070646295,-500.0,0.00027671,30]
[340912012,1730070646305,-514.23,0.00027671,30]
[340912013,1730070646314,-500.0,0.00027671,30]
[340912014,1730070646324,-500.0,0.00027671,30]
[340912015,1730070646334,-500.0,0.00027671,30]
[340912016,1730070646343,-636.41271015,0.00027671,30]
[340912017,1730070646353,-500.0,0.00027671,30]
[340912018,1730070646362,-500.0,0.00027671,30]
[340912019,1730070646372,-500.0,0.00027671,30]
[340912020,1730070646381,-500.0,0.00027671,30]
[340912021,1730070646391,-545.08,0.00027671,30]
[340912022,1730070646400,-500.0,0.00027671,30]
[340912023,1730070646409,-525.0,0.00027671,30]
[340912024,1730070646419,-682.8,0.00027671,30]
[340912025,1730070646429,-978.16,0.00027671,30]
[340912026,1730070646439,-931.98,0.00027671,30]
[340912027,1730070646448,-500.0,0.00027671,30]
[340912028,1730070646458,-500.0,0.00027671,30]
[340912030,1730070646467,-500.0,0.00027671,30]
[340912032,1730070646479,-500.0,0.00027671,30]
[340912033,1730070646491,-500.0,0.00027671,7]
[340912035,1730070646500,-500.0,0.00027671,30]
[340912036,1730070646510,-916.1,0.00027671,30]
[340912037,1730070646520,-151.0,0.00027671,7]
[340912038,1730070646532,-500.0,0.00027671,30]
[340912039,1730070646541,-703.29,0.00027671,30]
[340912040,1730070646551,-943.77,0.00027671,30]
[340912041,1730070646562,-500.0,0.00027671,30]
[340912042,1730070646572,-500.0,0.00027671,30]
[340912044,1730070646582,-500.0,0.00027671,30]
[340912045,1730070646592,-1368.28,0.00027671,30]
[340912046,1730070646602,-729.9,0.00027671,30]
[340912047,1730070646614,-601.58,0.00027671,30]
[340912048,1730070646624,-224.479716,0.00027671,7]
[340912049,1730070646634,-224.479716,0.00027671,7]
[340912050,1730070646647,-224.479716,0.00027671,7]
[340912051,1730070646659,-224.479716,0.00027671,7]
[340912052,1730070646671,-224.479716,0.00027671,7]
[340912054,1730070646682,-224.47972,0.00027671,7]
[340912056,1730070646692,-646.01,0.00027671,30]
[340912058,1730070646704,-791.615425,0.00027671,7]
[340912060,1730070646714,-791.615425,0.00027671,7]
[340912062,1730070646724,-791.615425,0.00027671,7]
[340912063,1730070646735,-791.615425,0.00027671,7]
[340912064,1730070646746,-791.615425,0.00027671,7]
[340912065,1730070646756,-791.615433,0.00027671,7]
[340912066,1730070646768,-500.0,0.00027671,30]
[340912067,1730070646779,-151.0,0.00027671,7]
[340912068,1730070646790,-500.0,0.00027671,30]
[340912069,1730070646802,-151.0,0.00027671,7]
[340912070,1730070646812,-151.0,0.00027671,7]
[340912071,1730070646823,-200.358962,0.00027671,7]
[340912072,1730070646834,-3430.42,0.00027671,30]
[340912073,1730070646845,-500.0,0.00027671,30]
[340912074,1730070646855,-500.0,0.00027671,30]
[340912075,1730070646865,-500.0,0.00027671,30]
[340912076,1730070646875,-17664.97,0.00027671,30]
[340912077,1730070646884,-967.85,0.00027671,30]
[340912078,1730070646894,-1080.09,0.00027671,30]
[340912079,1730070646903,-544.81,0.00027671,30]
[340912080,1730070646913,-500.0,0.00027671,30]
[340912081,1730070646922,-1149.8,0.00027671,30]
[340912082,1730070646932,-4786.5,0.00027671,21]
[340912083,1730070646941,-1807.9,0.00027671,30]
[340912084,1730070646951,-365.6870353,0.00027671,30]
[340912085,1730070647770,-569.590989,0.00027377,7]
[340912086,1730070647781,-500.0,0.00027397,30]
[340912087,1730070647792,-500.0,0.00027397,30]
[340912088,1730070647802,-569.590989,0.00027397,7]
[340912089,1730070647813,-569.590989,0.00027397,7]
[340912090,1730070647823,-401.8029647,0.00027671,30]
[340912091,1730070647834,-500.0,0.00027671,30]
[340912092,1730070647845,-518.62,0.00027671,30]
[340912093,1730070647855,-161.55994116,0.00027671,30]
[340912108,1730070840248,160.000001,0.00013973,2]
[340912110,1730070965571,10000.0,0.0002,10]
[340912111,1730071056751,10000.0,0.00022,60]
[340912131,1730071394019,160.712919,0.00013973,2]
[340912132,1730071443555,-160.712919,0.00022174,2]
[340912134,1730071720809,150.0,2.75e-05,120]
[340912135,1730071826987,480.0,0.0002,2]
[340912161,1730071838097,-712.23452358,0.00022,2]
[340912195,1730071839961,-1435.58211641,0.00022,2]
[340912196,1730071839973,-916.094998,0.00022,2]
[340912197,1730071840081,-370.02319007,0.00022,2]
[340912216,1730071843805,-4972.93813412,0.00022,2]
[340912217,1730071843815,-150.0,0.00024658,2]
[340912218,1730071843825,-428.12,0.00025,2]
[340912219,1730071843835,-166.666666,0.00025045,2]
[340912220,1730071843845,-174.775793,0.00025532,2]
[340912221,1730071843854,-2541.929,0.00025638,2]
[340912222,1730071843864,-1060.29010194,0.00025638,2]
[340912243,1730071845910,-87.70989806,0.00025638,2]
[340912244,1730071845921,-165.967015,0.00025802,2]
[340912245,1730071845930,-300.0,0.00025879,2]
[340912246,1730071845941,-165.967015,0.00025881,2]
[340912247,1730071845951,-165.967015,0.0002596,2]
[340912248,1730071845962,-500.0,0.00026,30]
[340912249,1730071845971,-165.967015,0.00026039,2]
[340912250,1730071845981,-165.967015,0.00026119,2]
[340912251,1730071845991,-165.967015,0.00026198,2]
[340912252,1730071846001,-186.352452,0.00026206,2]
[340912253,1730071846011,-165.967015,0.00026277,2]
[340912254,1730071846021,-165.967015,0.00026356,2]
[340912255,1730071846031,-165.967015,0.00026435,2]
[340912256,1730071846040,-492.27,0.00026442,2]
[340912257,1730071846050,-165.967015,0.00026514,2]
[340912258,1730071846060,-486.13216619,0.00026537,2]
[340912259,1730071846070,-165.967015,0.00026593,2]
[340912260,1730071846079,-165.967015,0.00026672,2]
[340912261,1730071846090,-165.967015,0.00026751,2]
[340912262,1730071846100,-165.967015,0.0002683,2]
[340912263,1730071846111,-165.967015,0.00026909,2]
[340912264,1730071846121,-165.967015,0.00026989,2]
[340912265,1730071846131,-165.967015,0.00027068,2]
[340912266,1730071846140,-165.967015,0.00027147,2]
[340912267,1730071846150,-150.0,0.000273,2]
[340912268,1730071846159,-200.0,0.000273,13]
[340912269,1730071846168,-195.523,0.0002734,16]
[340912270,1730071846352,-293.08498098,0.0002734,2]
[340912271,1730071846363,-500.0,0.00027373,2]
[340912272,1730071846373,-500.0,0.00027373,2]
[340912273,1730071846383,-500.0,0.00027373,2]
[340912274,1730071846393,-500.0,0.00027373,2]
[340912275,1730071846403,-500.0,0.00027373,2]
[340912276,1730071846413,-161.23,0.00027376,10]
[340912277,1730071846424,-806.16,0.00027376,10]
[340912278,1730071846435,-374.95266569,0.00027376,2]
[340912279,1730071846444,-1672.84218191,0.00027377,4]
[340912280,1730071893031,157.743265,0.00013973,2]
[340912281,1730072097222,3454.25321032,0.00036212,30]
[340912282,1730072503046,159.822022,0.00013973,2]
[340912283,1730072587723,1188.0,0.0002001,2]
[340912298,1730073032134,-159.822022,0.00020447,2]
[340912299,1730073032145,-166.666666,0.00024568,2]
[340912300,1730073032155,-150.0,0.00024658,2]
[340912301,1730073032164,-147.71415923,0.00025011,2]
[340912342,1730073038266,-6627.64825567,0.00025011,2]
[340912345,1730073038275,-224.1311933,0.00025059,2]
[340912347,1730073038284,-300.0,0.00025187,2]
[340912349,1730073038293,-300.0,0.00025187,2]
[340912351,1730073038303,-3000.0,0.00025188,2]
[340912353,1730073038311,-250.0,0.00025326,2]
[340912355,1730073038320,-170.154578,0.00025361,2]
[340912356,1730073038330,-7712.2665858,0.00025378,2]
[340912357,1730073038339,-166.666666,0.00025405,2]
[340912358,1730073038348,-170.154578,0.00025508,2]
[340912359,1730073038357,-170.154578,0.00025655,2]
[340912360,1730073038366,-170.154578,0.00025802,2]
[340912361,1730073038376,-170.154578,0.00025948,2]
[340912362,1730073038384,-175.474865,0.0002597,2]
[340912363,1730073038394,-175.474865,0.00026035,2]
[340912364,1730073038404,-170.154578,0.00026095,2]
[340912365,1730073038414,-175.474865,0.000261,2]
[340912366,1730073038424,-170.154578,0.00026242,2]
[340912367,1730073038435,-166.666666,0.00026242,2]
[340912368,1730073038446,-1148.0,0.00026376,2]
[340912369,1730073038456,-2395.0,0.00026376,2]
[340912370,1730073038465,-150.906,0.00026376,2]
[340912371,1730073038474,-170.154578,0.00026389,2]
[340912372,1730073038483,-276.84682,0.00026403,2]
[340912373,1730073038493,-482.899804,0.00026403,2]
[340912374,1730073038503,-170.154578,0.00026536,2]
[340912375,1730073038669,-170.154578,0.00026683,2]
[340912376,1730073038680,-276.84682,0.00026733,2]
[340912377,1730073038690,-482.899804,0.00026733,2]
[340912378,1730073038700,-159.822022,0.00026921,2]
[340912379,1730073038709,-228.0,0.00027,2]
[340912380,1730073038719,-276.84682,0.00027063,2]
[340912381,1730073038728,-482.899804,0.00027063,2]
[340912382,1730073038737,-166.666666,0.0002708,2]
[340912383,1730073038746,-420.0,0.00027281,2]
[340912384,1730073038756,-200.0,0.000273,13]
[340912385,1730073038765,-156.419,0.0002734,16]
[340912386,1730073038774,-500.0,0.00027373,2]
[340912387,1730073038783,-500.0,0.00027373,2]
[340912388,1730073038792,-500.0,0.00027373,2]
[340912389,1730073038802,-500.0,0.00027373,2]
[340912390,1730073038811,-249.9684438,0.00027373,2]
[340912391,1730073038820,-1117.32993472,0.00027377,4]
[340912392,1730073038832,-26622.60587563,0.00027377,4]
[340912393,1730073038843,-39776.14898495,0.00027377,4]
[340912394,1730073038852,-1811.07041466,0.00027377,4]
[340912395,1730073038862,-500.0,0.00027384,2]
[340912396,1730073038871,-358.96897885,0.00027384,2]
[340912397,1730073038883,-500.0,0.00027384,2]
[340912398,1730073038896,-363.9611741,0.00027384,2]
[340912399,1730073038906,-207.43888673,0.00027384,2]
[340912400,1730073038915,-281.40437839,0.00027384,2]
[340912401,1730073038926,-285.21836622,0.00027384,2]
[340912402,1730073038945,-500.0,0.00027384,2]
[340912403,1730073038959,-500.0,0.00027384,2]
[340912404,1730073038971,-500.0,0.00027384,2]
[340912405,1730073038983,-500.0,0.00027384,2]
[340912406,1730073038992,-500.0,0.00027384,2]
[340912407,1730073039002,-500.0,0.00027384,2]
[340912408,1730073039013,-500.0,0.00027384,2]
[340912409,1730073039025,-500.0,0.00027384,2]
[340912410,1730073039036,-500.0,0.00027384,2]
[340912411,1730073039047,-500.0,0.00027384,2]
[340912412,1730073039057,-500.0,0.00027384,2]
[340912413,1730073039066,-500.0,0.00027384,2]
[340912414,1730073039076,-500.0,0.00027384,2]
[340912415,1730073039086,-500.0,0.00027384,2]
[340912416,1730073039096,-500.0,0.00027384,2]
[340912417,1730073039106,-500.0,0.00027384,2]
[340912418,1730073039116,-500.0,0.00027384,2]
[340912419,1730073039126,-500.0,0.00027384,2]
[340912420,1730073039136,-500.0,0.00027384,2]
[340912421,1730073039146,-500.0,0.00027384,2]
[340912422,1730073039155,-500.0,0.00027384,2]
[340912423,1730073039165,-500.0,0.00027384,2]
[340912424,1730073039174,-500.0,0.00027384,2]
[340912425,1730073039184,-500.0,0.00027384,2]
[340912426,1730073039193,-500.0,0.00027384,2]
[340912427,1730073039203,-500.0,0.00027384,2]
[340912428,1730073039213,-500.0,0.00027384,2]
[340912429,1730073039222,-500.0,0.00027384,2]
[340912430,1730073039232,-500.0,0.00027384,2]
[340912431,1730073039243,-500.0,0.00027384,2]
[340912432,1730073039253,-500.0,0.00027384,2]
[340912433,1730073039263,-500.0,0.00027384,2]
[340912434,1730073039273,-500.0,0.00027384,2]
[340912435,1730073039284,-500.0,0.00027384,2]
[340912436,1730073039293,-500.0,0.00027384,2]
[340912437,1730073039304,-500.0,0.00027384,2]
[340912438,1730073039314,-500.0,0.00027384,2]
[340912439,1730073039325,-500.0,0.00027384,2]
[340912440,1730073039336,-500.0,0.00027384,2]
[340912441,1730073039348,-500.0,0.00027384,2]
[340912442,1730073039359,-500.0,0.00027384,2]
[340912443,1730073039368,-500.0,0.00027384,2]
[340912444,1730073039378,-500.0,0.00027384,2]
[340912445,1730073039388,-500.0,0.00027384,2]
[340912446,1730073039400,-500.0,0.00027384,2]
[340912447,1730073039411,-500.0,0.00027384,2]
[340912448,1730073039424,-500.0,0.00027384,2]
[340912449,1730073039434,-500.0,0.00027384,2]
[340912450,1730073039445,-493.56927264,0.00027384,2]
[340912451,1730073039456,-500.0,0.00027384,2]
[340912452,1730073039467,-451.88336142,0.00027384,2]
[340912453,1730073039478,-500.0,0.00027384,2]
[340912454,1730073039489,-500.0,0.00027384,2]
[340912456,1730073039499,-500.0,0.00027384,2]
[340912457,1730073039509,-500.0,0.00027384,2]
[340912459,1730073039519,-500.0,0.00027384,2]
[340912460,1730073039528,-500.0,0.00027384,2]
[340912461,1730073039538,-500.0,0.00027384,2]
[340912462,1730073039553,-500.0,0.00027384,2]
[340912463,1730073039562,-500.0,0.00027384,2]
[340912464,1730073039572,-500.0,0.00027384,2]
[340912466,1730073039582,-500.0,0.00027384,2]
[340912468,1730073039594,-500.0,0.00027384,2]
[340912470,1730073039605,-154.68753542,0.00027386,2]
[340912473,1730073039616,-536.4156193,0.00027386,2]
[340912475,1730073039627,-160.04348417,0.00027386,2]
[340912477,1730073039638,-35858.04939083,0.00027387,4]
[340912599,1730073043618,-20334.124469,0.00027387,4]
[340912600,1730073043630,-358.83929665,0.00027387,4]
[340912741,1730073046042,-2971.9781349,0.00027287,2]
[340912744,1730073046053,-6668.02186494,0.00027387,4]
[340912748,1730073046080,-32000.0,0.00027387,4]
[340912750,1730073046092,-39813.13456958,0.00027387,4]
[340912752,1730073046102,-3622.14082932,0.00027387,4]
[340912754,1730073046111,-151.0,0.00027387,7]
[340912756,1730073046120,-151.0,0.00027387,7]
[340912758,1730073046129,-276.84682,0.00027393,2]
[340912760,1730073046139,-482.899804,0.00027393,2]
[340912762,1730073046151,-237.651128,0.00027397,7]
[340912764,1730073046160,-500.0,0.00027397,30]
[340912766,1730073046170,-500.0,0.00027397,30]
[340912768,1730073046179,-500.0,0.00027397,30]
[340912770,1730073046189,-500.0,0.00027397,30]
[340912773,1730073046198,-865.13,0.00027397,30]
[340912775,1730073046208,-500.0,0.00027397,30]
[340912777,1730073046217,-597.91,0.00027397,30]
[340912779,1730073046227,-500.0,0.00027397,30]
[340912781,1730073046236,-500.0,0.00027397,30]
[340912783,1730073046246,-500.0,0.00027397,30]
[340912785,1730073046255,-500.0,0.00027397,30]
[340912787,1730073046265,-502.41410584,0.00027397,30]
[340912789,1730073046274,-500.0,0.00027397,30]
[340912791,1730073046284,-500.0,0.00027397,30]
[340912793,1730073046295,-500.0,0.00027397,30]
[340912795,1730073046305,-500.0,0.00027397,30]
[340912797,1730073046315,-703.54,0.00027397,30]
[340912800,1730073046325,-500.0,0.00027397,30]
[340912802,1730073046337,-500.0,0.00027397,30]
[340912804,1730073046347,-247.45521879,0.00027397,30]
[340912806,1730073046357,-354.96262188,0.00027397,30]
[340912878,1730073337561,500.0,0.0002,2]
[340912884,1730073643731,159.822022,0.00013973,2]
[340912885,1730073699607,505.26,0.0002001,2]
[340912886,1730073902126,500.0,0.0002,2]
[340912887,1730073913479,500.0,0.0002001,2]
[340912888,1730073936816,500.0,0.0002001,2]
[340912889,1730073975027,151.5606197,0.0002,2]
[340912890,1730073992070,500.0,0.0002001,2]
[340912891,1730074006883,603.26,0.0002001,2]
[340912892,1730074092113,-159.822022,0.00021661,2]
[340912983,1730074238472,-166.666666,0.00023578,2]
[340912984,1730074238482,-150.0,0.00024658,2]
[340912985,1730074238492,-500.0,0.00024973,2]
[340912986,1730074238502,-500.0,0.00024973,2]
[340912987,1730074238518,-500.0,0.00024973,2]
[340912989,1730074238528,-500.0,0.00024973,2]
[340912990,1730074238538,-300.0,0.00024978,2]
[340912991,1730074238548,-500.0,0.00024979,2]
[340912992,1730074238558,-500.0,0.00024979,2]
[340912993,1730074238567,-500.0,0.00024979,2]
[340912994,1730074238576,-500.0,0.00024979,2]
[340912995,1730074238586,-500.0,0.00024979,2]
[340912996,1730074238596,-500.0,0.00024979,2]
[340912997,1730074238605,-500.0,0.00024979,2]
[340912998,1730074238616,-500.0,0.00024979,2]
[340912999,1730074238626,-500.0,0.00024979,2]
[340913000,1730074238635,-500.0,0.00024979,2]
[340913001,1730074238646,-500.0,0.00024979,2]
[340913002,1730074238655,-500.0,0.00024979,2]
[340913003,1730074238665,-500.0,0.00024979,2]
[340913004,1730074238675,-500.0,0.00024979,2]
[340913005,1730074238684,-500.0,0.00024979,2]
[340913006,1730074238695,-500.0,0.00024979,2]
[340913007,1730074238706,-500.0,0.00024979,2]
[340913008,1730074238716,-500.0,0.00024979,2]
[340913009,1730074238726,-500.0,0.00024979,2]
[340913010,1730074238736,-500.0,0.00024979,2]
[340913011,1730074238745,-500.0,0.00024979,2]
[340913012,1730074238755,-500.0,0.00024979,2]
[340913013,1730074238765,-500.0,0.00024979,2]
[340913014,1730074238774,-500.0,0.00024979,2]
[340913015,1730074238784,-500.0,0.00024979,2]
[340913016,1730074238794,-500.0,0.00024979,2]
[340913017,1730074238803,-449.35692726,0.00024979,2]
[340913018,1730074238813,-500.0,0.00024979,2]
[340913019,1730074238823,-500.0,0.00024979,2]
[340913020,1730074238833,-500.0,0.00024979,2]
[340913021,1730074238842,-500.0,0.00024979,2]
[340913022,1730074238851,-500.0,0.00024979,2]
[340913023,1730074238865,-500.0,0.00024979,2]
[340913024,1730074238875,-500.0,0.00024979,2]
[340913025,1730074238886,-500.0,0.00024979,2]
[340913026,1730074238896,-500.0,0.00024979,2]
[340913027,1730074238905,-395.18833614,0.00024979,2]
[340913028,1730074238915,-500.0,0.00024979,2]
[340913029,1730074238924,-166.6456292,0.0002498,2]
[340913030,1730074238934,-118153.148392,0.0002498,3]
[340913031,1730074238943,-3169.37322565,0.0002498,3]
[340913032,1730074238953,-375.49093351,0.00024989,2]
[340913033,1730074238963,-118153.148392,0.0002499,3]
[340913034,1730074238985,-4437.12251591,0.0002499,3]
[340913035,1730074238994,-315267.57422472,0.00025,2]
[340913036,1730074239004,-567.37,0.00025,14]
[340913037,1730074239014,-535.8,0.00025,14]
[340913038,1730074239023,-235.03,0.00025,14]
[340913039,1730074239034,-449.7,0.00025,14]
[340913040,1730074239043,-1000.0,0.00026342,2]
[340913041,1730074239053,-1000.0,0.00026342,2]
[340913042,1730074239062,-1000.0,0.00026342,2]
[340913043,1730074239072,-1000.0,0.00026342,2]
[340913044,1730074239082,-1148.0,0.00026378,2]
[340913045,1730074239091,-2395.0,0.00026378,2]
[340913046,1730074239100,-400.665818,0.00026403,2]
[340913047,1730074239110,-167.160553,0.00026403,2]
[340913048,1730074239119,-182.575679,0.00026403,2]
[340913049,1730074239128,-466.05660831,0.00026471,2]
[340913050,1730074239138,-400.665818,0.00026733,2]
[340913051,1730074239147,-182.575679,0.00026843,2]
[340913052,1730074239157,-500.0,0.0002685,2]
[340913053,1730074239167,-248.022,0.0002697,2]
[340913054,1730074239176,-500.0,0.0002697,2]
[340913055,1730074239186,-200.0,0.00027,2]
[340913056,1730074239196,-200.0,0.00027,2]
[340913057,1730074239205,-153.5134624,0.00027002,2]
[340913058,1730074239214,-153.0,0.00027002,2]
[340913059,1730074239224,-153.0,0.00027002,2]
[340913060,1730074239234,-153.0,0.00027002,2]
[340913061,1730074239248,-500.0,0.0002701,2]
[340913062,1730074239257,-420.0,0.0002706,2]
[340913063,1730074239267,-400.665818,0.00027063,2]
[340913064,1730074239277,-400.665818,0.0002707,2]
[340913065,1730074239286,-500.0,0.0002708,2]
[340913066,1730074239296,-500.0,0.0002709,2]
[340913067,1730074239305,-150.112233,0.000272,10]
[340913068,1730074239317,-500.0,0.000272,2]
[340913069,1730074239326,-2070.38845261,0.0002728,2]
[340913070,1730074239336,-500.0,0.0002728,2]
[340913071,1730074239345,-182.575679,0.00027283,2]
[340913072,1730074239354,-500.0,0.0002729,2]
[340913073,1730074239364,-500.0,0.000273,2]
[340913074,1730074239374,-200.0,0.000273,13]
[340913075,1730074239384,-500.0,0.00027373,2]
[340913076,1730074239394,-500.0,0.00027373,2]
[340913077,1730074239403,-500.0,0.00027373,2]
[340913078,1730074239488,-500.0,0.00027373,2]
[340913079,1730074239499,-500.0,0.00027373,2]
[340913080,1730074239508,-500.0,0.00027373,2]